Cogmind - Beta 14 @@@ ROGUE MODE // 2024.09.14 @ 05:49:16 Player: Zaros426 Result: Destroyed by D-53 Grenadier with Mini Grenade Launcher Performance ------------- Evolutions (0) 0 Regions Visited (2) 400 Robots Destroyed (32) 160 Value Destroyed (539) 539 Prototype IDs (2) 40 Alien Tech Used (0) 0 Bonus (-110) -110 TOTAL SCORE: 1029 Bonus ------- Follower Combat Kills 66 Friendly Fire -176 Cogmind --------- Core Integrity 0/250 Matter 254/300 Energy 48/100 System Corruption 1% Temperature Cool (0) Movement Core (400) Ox7 Location -10/Mines Parts ------- > --- POWER (1) -------- (None) > --- PROPULSION (2) --- (None) > --- UTILITY (2) ------ Large Storage Unit > --- WEAPON (2) ------- Heavy Assault Rifle > --- INVENTORY (15) --- Improved Ion Engine Wheel Heat Sink Huge Storage Unit Signal Interpreter Improved Terrain Scanner Seismic Detector Assault Rifle Mini Grenade Launcher Mini Grenade Launcher Datajack Hammer Peak State ------------ > --- POWER ------------ Ion Engine > --- PROPULSION ------- Light Treads Light Treads > --- UTILITY ---------- Large Storage Unit Light Armor Plating > --- WEAPON ----------- EM Shotgun EM Shotgun > --- INVENTORY -------- Huge Storage Unit Signal Interpreter Improved Terrain Scanner Seismic Detector EM Pulse Gun EM Shotgun EM Shotgun Assault Rifle Mini Grenade Launcher Mini Grenade Launcher Mini Grenade Launcher Datajack Mining Laser [Rating: 11] Favorites ----------- Power Ion Engine Engine Ion Engine Propulsion Light Treads Treads Light Treads Wheel Wheel Utility Large Storage Unit Storage Large Storage Unit Protection Light Armor Plating Weapon EM Shotgun Energy Gun EM Shotgun Ballistic Gun Assault Rifle Launcher Mini Grenade Launcher Special Weapon Mining Laser Build | -11 -10 -10 ------- Run | Yrd Mat Min Slots Evolved . | . . . Power . | . . . Propulsion . | . . . Utility . | . . . Weapon . | . . . Parts Attached 27 | 6 10 11 Power 3 | 1 1 1 Engine 3 | 1 1 1 Core . | . . . Reactor . | . . . Propulsion 3 | 2 . 1 Treads 2 | 2 . . Leg . | . . . Wheel 1 | . . 1 Hover . | . . . Flight . | . . . Utility 5 | 1 4 . Device . | . . . Storage 4 | 1 3 . Processor . | . . . Hackware . | . . . Protection 1 | . 1 . Artifact . | . . . Weapon 16 | 2 5 9 Energy Gun 8 | 1 4 3 Energy Cannon . | . . . Ballistic Gun 3 | 1 . 2 Ballistic Cannon . | . . . Launcher 4 | . . 4 Special Weapon 1 | . 1 . Impact Weapon . | . . . Slashing Weapon . | . . . Piercing Weapon . | . . . Special Melee Weapon . | . . . Unidentified Prototypes . | . . . Parts Lost 12 | . 1 11 Power 2 | . . 2 Propulsion 3 | . . 3 Utility 1 | . . 1 Weapon 6 | . 1 5 Highest Loss Streak 7 | . 1 7 To Critical Strikes . | . . . Average Slot Usage (%) 91 | . 97 79 Engine 12 | . 14 8 Treads 23 | . 28 15 Wheel 4 | . . 11 Storage 14 | . 14 14 Protection 7 | . 11 1 Energy Gun 18 | . 27 1 Ballistic Gun 1 | . . 4 Launcher 8 | . . 21 Peak Build Rating 11 | 6 11 11 Average Rating 9 | 5 10 9 On Entrance 5 | . 6 11 Naked Turns . | . . . Heaviest Build 89 | 11 89 34 Greatest Support 40 | 40 40 40 Greatest Overweight (x) 2 | . 2 2 Average Overweight (x) . | . . 1 Largest Inventory Capacity 25 | 8 25 15 Average Capacity 13 | 7 14 15 Most Carried 15 | 4 14 15 Average Carried 11 | 2 11 14 Final Capacity 15 | 8 15 15 Final Carried 14 | 4 14 12 Class Distribution -------------------- 100% | Mutant Dominant Class ---------------- Mutant | -10/Materials Mutant | -10/Mines Resources | -11 -10 -10 ----------- Run | Yrd Mat Min Matter Collected 746 | 276 100 370 Remotely . | . . . Salvage Created 1053 | 135 691 227 Parts 72 | 15 43 14 Haulers Intercepted . | . . . Recyclers Shooed 3 | 1 1 1 Parts Field Recycled . | . . . Retrieved Matter . | . . . Parts Self-Destructed . | . . . Prevented . | . . . Kills | -11 -10 -10 ------- Run | Yrd Mat Min Combat Hostiles Destroyed 34 | . 12 22 Guns 10 | . 10 . AOE 24 | . 2 22 Classes Destroyed 8 | 1 6 1 Builder 2 | . 1 1 Tunneler 6 | 6 . . Recycler 4 | . 2 2 Operator 1 | . 1 . Watcher 3 | . 3 . Swarmer 6 | . 3 3 Grunt 10 | . 9 1 Assembled 19 | . . 19 Best Kill Streak 21 | 2 4 21 Combat Bots Only 19 | . 4 19 Max Kills in Single Turn 5 | 1 1 5 Gunslinging . | . . . Exploded 5 | . 1 5 Melee . | . . . Uniques/NPCs Destroyed . | . . . Combat | -11 -10 -10 -------- Run | Yrd Mat Min Hostile Shots Fired 72 | . 41 31 Missed 11 | . 7 4 Damage Taken 1290 | . 415 875 Core 259 | . 24 235 Absorbed by Shields . | . . . Core Remaining (%) 100 | 100 . . Volleys Fired 78 | 16 38 24 Largest 2 | 2 2 2 Hottest 145 | 60 145 90 Shots Fired 148 | 32 75 41 Gun 114 | 32 73 9 Cannon . | . . . Launcher 32 | . . 32 Special 2 | . 2 . Kinetic 23 | 16 . 7 Thermal 2 | . 2 . Explosive 32 | . . 32 Electromagnetic 91 | 16 73 2 Robot Hit Streak 13 | 6 13 7 Robot Miss Streak 4 | 2 4 2 Penetration Max . | . . . Secondary Targets . | . . . Shots Hit Robots 83 | 18 50 15 Core Hits 98 | 10 35 53 Critical Kills . | . . . Critical Parts Destroyed . | . . . Critical Strikes . | . . . Melee Attacks . | . . . Impact . | . . . Slashing . | . . . Piercing . | . . . Sneak Attacks . | . . . Combat Hostiles . | . . . Follow-up Attacks . | . . . Damage Inflicted 2732 | 194 854 1684 Guns 1011 | 194 721 96 Cannons . | . . . Explosions 1721 | . 133 1588 Melee . | . . . Ramming . | . . . Kinetic 170 | 90 . 80 Thermal 133 | . 133 . Explosive 1588 | . . 1588 Electromagnetic 841 | 104 721 16 Impact . | . . . Slashing . | . . . Piercing . | . . . Highest Corruption 1 | . 1 1 Average Corruption 1 | . 1 1 Corruption Purged . | . . . Corruption Blocked . | . . . Effects 7 | . . 7 Message Errors 1 | . . 1 Matter Fused 2 | . . 2 Energy Discharges 2 | . . 2 Parts Fused 1 | . . 1 Data Loss (major) 1 | . . 1 Overload Shots . | . . . Overflow Damage 48 | . 11 37 Projectiles . | . . . Explosions 48 | . 11 37 Melee . | . . . Knockbacks . | . . . Impact . | . . . Kinetic . | . . . Secondary . | . . . Self-Inflicted Damage 231 | . 69 162 Shots 9 | . 3 6 Rammed . | . . . Targets Rammed . | . . . Kicked . | . . . Crushed . | . . . Highest Temperature 327 | 40 327 45 Average Temperature 62 | 18 80 15 Received Heat Transfer 165 | . 138 27 Siege Activations . | . . . Robots Corrupted . | . . . Combat Hostiles . | . . . Parts Fried 3 | . 3 . Impact Corruptions . | . . . Robots Melted . | . . . Combat Hostiles . | . . . Parts Melted . | . . . Heat Transferred 200 | . 200 . Parts Sabotaged . | . . . Parts Stolen . | . . . Parts Stripped . | . . . Power Chain Reactions 4 | . 4 . Alert | -11 -10 -10 ------- Run | Yrd Mat Min Peak Influence 275 | 30 275 201 Initial 70 | . 19 70 Average 118 | 14 137 112 Maximum Alert Level 1 | . 1 1 Low Security (%) 90 | 100 85 94 Level 1 9 | . 14 5 Level 2 . | . . . Level 3 . | . . . Level 4 . | . . . Level 5 . | . . . High Security . | . . . Max Security . | . . . Squads Dispatched 5 | . 5 . Investigation 4 | . 4 . Extermination . | . . . Reinforcement 1 | . 1 . Assault . | . . . Garrison . | . . . Intercept . | . . . Searches Triggered . | . . . Construction Impeded . | . . . Haulers Reinforced . | . . . Active Scanning Responses . | . . . Cargo Convoy Interrupts . | . . . Stealth | -11 -10 -10 --------- Run | Yrd Mat Min Distress Signals . | . . . Communications Jammed . | . . . Distress Signals . | . . . Times Spotted 46 | . 22 24 Peak Tracking Total 6 | . 3 6 Tactical Retreats 2 | . 2 . Traps | -11 -10 -10 ------- Run | Yrd Mat Min Traps Triggered . | . . . Indirectly . | . . . Trap Hack Attempts . | . . . Triggered . | . . . Disarmed . | . . . Reprogrammed . | . . . Reused . | . . . Traps Extracted . | . . . Installed . | . . . Triggered . | . . . Machines | -11 -10 -10 ---------- Run | Yrd Mat Min Machines Disabled 4 | . 1 3 Max in Single Turn 2 | . 1 2 Machines Repaired . | . . . Machines Dismantled . | . . . Machines Sabotaged . | . . . Overloaded Fab Kills . | . . . Hacking | -11 -10 -10 --------- Run | Yrd Mat Min Machines Accessed 10 | . 10 . Terminals 7 | . 7 . Fabricators . | . . . Repair Stations 1 | . 1 . Recycling Units 2 | . 2 . Scanalyzers . | . . . Garrison Access . | . . . Total Hacks 29 | . 29 . Successful 12 | . 12 . Failed 17 | . 17 . Catastrophic 4 | . 4 . Database Lockouts . | . . . Manual 16 | . 16 . Terminals 26 | . 26 . Fabricators . | . . . Repair Stations 1 | . 1 . Recycling Units 2 | . 2 . Scanalyzers . | . . . Garrison Access . | . . . Terminal Hacks 5 | . 5 . Robot Analysis 1 | . 1 . Prototype ID Bank 1 | . 1 . Locate Traps 1 | . 1 . Zone Layout 2 | . 2 . Fabricator Hacks . | . . . Repair Station Hacks . | . . . Recycling Unit Hacks . | . . . Scanalyzer . | . . . Garrison Access Hacks . | . . . Unauthorized Hacks 7 | . 7 . Terminals 5 | . 5 . Skim 5 | . 5 . Fabricators . | . . . Repair Stations . | . . . Recycling Units 2 | . 2 . Tunnel 2 | . 2 . Scanalyzers . | . . . Garrison Access . | . . . Data Cores Recovered . | . . . Used . | . . . Hacking Detections 8 | . 8 . Full Trace Events 1 | . 1 . Feedback Events 1 | . 1 . Corruption 1 | . 1 . Feedback Blocked . | . . . Robot Schematics Acquired . | . . . Robots Built . | . . . Authchips . | . . . Time . | . . . Total Robot Build Rating . | . . . Part Schematics Acquired . | . . . Parts Built . | . . . Authchips . | . . . Time . | . . . Total Part Build Rating . | . . . Parts Repaired . | . . . Time . | . . . Parts Recycled . | . . . Recycled Matter . | . . . Retrieved Matter . | . . . Retrieved Components . | . . . Parts Scanalyzed . | . . . Part Schematics Acquired . | . . . Parts Damaged . | . . . Bothacking | -11 -10 -10 ------------ Run | Yrd Mat Min Used RIF Installer . | . . . Robots Hacked . | . . . Non-combat . | . . . Combat . | . . . Robot Hacks Applied . | . . . Relay Couplers Released . | . . . Fabnet Peak Effective % . | . . . Robots Rewired . | . . . Allies Hacked . | . . . Hacks Repelled . | . . . Allies | -11 -10 -10 -------- Run | Yrd Mat Min Total Allies 3 | . . 3 Largest Group 3 | . . 3 Highest-Rated Group 40 | . . 40 Highest-Rated Ally 16 | . . 16 Total Orders . | . . . Ally Attacks 7 | . . 7 Total Damage 60 | . . 60 Kills 2 | . . 2 Allies Corrupted . | . . . Allies Melted . | . . . Intel | -11 -10 -10 ------- Run | Yrd Mat Min Robot Analysis Total 1 | . 1 . Derelict Logs Recovered 2 | . . 2 Drone Launches . | . . . Drone Recoveries . | . . . Exploration | -11 -10 -10 ------------- Run | Yrd Mat Min Turns Passed 2450 | 222 1416 812 Spaces Moved 1479 | 104 746 629 Core 1 | 1 . . Treads 893 | 103 746 44 Legs . | . . . Wheels 585 | . . 585 Hover . | . . . Flight . | . . . Fastest Speed 50 | 50 160 110 Average Speed 141 | 158 162 114 Slowest Speed 320 | 160 320 240 Overloaded Moves . | . . . Propulsion Burnouts . | . . . Robots Hopped . | . . . Cave-ins Triggered . | . . . Exploration Rate (%) 63 | 6 95 90 Regions Visited 2 Branch Regions 1 Pre-discovered Areas 4 | . 3 1 Known Exits Taken . | . . . Unknown Exits Taken 2 | 1 1 . Scrap Searched 1 | . . 1 Spaces Dug 22 | . 2 20 Terrain Destroyed 259 | . 13 246 Melee . | . . . Projectile 2 | . 2 . AOE 257 | . 11 246 Terrain Rammed . | . . . Walls Destroyed . | . . . Machines Disabled . | . . . Actions | -11 -10 -10 --------- Run | Yrd Mat Min Total 1677 | 129 873 675 Wait 66 | . 61 5 Move 1477 | 103 745 629 Hop . | . . . Pick Up 19 | 4 11 4 Fast Attach 13 | 6 5 2 Attach 5 | . 1 4 Detach 2 | . 2 . Swap 9 | . 4 5 Drop 8 | . 6 2 Fire 78 | 16 38 24 Melee . | . . . Ram . | . . . Kick . | . . . Crush . | . . . Escape Stasis . | . . . Rewire . | . . . Trap . | . . . Miscellaneous . | . . . Route ------- -11/Scrapyard -10/Materials (discovered 5 exits: *Mat x3 / [*Min] / *Sub) -10/Mines (discovered 2 exits: *Mat x2) History --------- Turn | Location | Event 24 | -11/Scrapyard | Discovered new exit (range 16) 223 | -11/Scrapyard | Entered Materials 330 | -10/Materials | Build established: Mutant 444 | -10/Materials | Discovered new exit (range 15) 716 | -10/Materials | Discovered new exit (range 8) 785 | -10/Materials | Learned 4 Recycling zone layouts 907 | -10/Materials | Discovered new exit (range 10) 977 | -10/Materials | Learned Storage stockpile data 984 | -10/Materials | Discovered new exit (range 5) 1022 | -10/Materials | Learned Storage emergency access door positions 1056 | -10/Materials | Identified exit to Materials 1112 | -10/Materials | Learned Storage non-interactive machine intel 1158 | -10/Materials | Learned location of 1 exit from Recycling 1214 | -10/Materials | Identified exit to Subcaves 1639 | -10/Materials | Entered Mines 1640 | -10/Mines | Assembled infested the area 1642 | -10/Mines | Met a Derelict bent on vengeance 1645 | -10/Mines | Assisted by a Guerilla fighting off Assembled 1749 | -10/Mines | Destroyed 19 combat bots 1756 | -10/Mines | Lost 4 parts (1p1n1u1w) 1802 | -10/Mines | Assisted by bots powering up and referring to "LRC-V3" 2166 | -10/Mines | Learned location of 1 exit from Materials 2181 | -10/Mines | Received a Rocket Launcher from a helpful Derelict 2316 | -10/Mines | Discovered exit to Materials (range 6) 2349 | -10/Mines | Learned location of Zion (-6) 2353 | -10/Mines | Discovered exit to Materials (range 6) 2442 | -10/Mines | Core integrity fell below 50% 2450 | -10/Mines | Core integrity fell below 20% 2451 | -10/Mines | Destroyed by D-53 Grenadier with Mini Grenade Launcher Last Messages --------------- 02413_ T-07 Excavator is excavating. 02413_ U-05 Engineer lays Concrete. 02415_ U-05 Engineer builds a Wall. 02417_ T-07 Excavator is excavating. 02419_ U-05 Engineer builds a Wall. 02421_ T-07 Excavator is excavating. 02423_ U-05 Engineer lays Concrete. 02425_ U-05 Engineer builds a Wall. 02425_ T-07 Excavator is excavating. 02431_ 3Q%F>|O7SL=P&D#40 KRL2C 02442_ Lgt. Treads destroyed. 02443_ Imp. Ion Engine destroyed. 02443_ Mercenary 1a destroyed. 02445_ EM Shotgun destroyed. 02445_ Trooper 1a destroyed. 02445_ Mni. Grenade Launcher destroyed. 02447_ Wheel destroyed. 02447_ EM Pulse Gun destroyed. 02449_ The unstable cave ceiling collapses. 02451_ EM Shotgun destroyed. Map ----- +----------------------------------------------------+ | | | | | | | | | | | | | | | | | | | | | | | ????????????????????????????????????????????? | | ???#############????????????????????????????? | | ???# #??????????????####??????????? | | ???# """ """ #????????????## ##?????????? | | ???? """ """ #??????????### #?????????? | | ???# """ """ #?????????## #?????????? | | ???# #??######## #??????????? | | ???# """ """ #??# #####?????#????? | | ???# """ """ #??# ####### ##????????? ????? | | ???# """ """ #?## ####??###?????????? ????? | | ???# ### ##?????????????# ????? | | ???# """ ## ##????????????# ????? | | ???# """ # #????????????# ????? | | ???# """ # #????????????# #???? | | ???# < # @ ####?????????# #???? | | ???# # ??????# #???? | | ???######## ### d ##????# #???? | | ??????????# #?## # < d #????# #???? | | ??????????# ##### ### ###### ##??? | | ??????????# ####?### #??# | | ??????????# #????????## #?## | | ??????????###########?????????######### ### | | ??????????????#####???????????????????# | | ????????????### ##??????????????????# #### | | ?############ #??????????????????# #??# | | ?# # #???????????????#### #??? | | ?# # #??????????????## #??? | | ?# ##??????????????# #??? | | ??#### ##???????????????# #??? | | ?????# ### ##????????####????## #??? | | ?????# #?# #?????????# #####?## ##??? | | ?????# #?# ##??????### #??# ###?### | | ?????########## ##??????# #### #???# | | ??????????##### ##??????# # % #???# | | ??????????# # ##?????## # #???# | | ?????????## ## ###????# # #######??## | | ????????### ### # ###??# [ # # #??????## | | ????????## #### ### #### * #?????## | | ?????#### ### ### # #?????# | +----------------------------------------------------+ Best States ------------- Heat Dissipation 25 Energy Generation 12 Energy Capacity 265 Matter Stores 300 Matter Capacity 300 Sight Range 16 Terrain Scan Density 10 Armor Coverage 150 Evasion (%) 40 Recoil Reduction 2 Item Schematics ----------------- None Robot Schematics ------------------ None Fabricated ------------ Nothing Alien Tech Used ----------------- None Achievements -------------- None Challenges ------------ None Game ------ Seed SuperdenseJunkFalx Manual? 0 Play Time 00:15:18 Cumulative 85.7 hours Start 2024.09.14 @ 05:35:39 End 2024.09.14 @ 05:49:16 Sessions 1 Manual Loads 0 Difficulty Rogue Special Mode None Game No. 49 Rogue 49 Adventurer 0 Explorer 0 Win Type - Total 0 Types 0/0/0/0/0/0/0/0/0 Lore% 44 Gallery% 60 Achievement% 51 Wizard Run 0 Options --------- Layout 0 ASCII 0 Keyboard 0 Movement Mouse Keybinds 0 Fullscreen 1 Font 24/Smallcaps Map View 183x50 Zoom Use 0% Tactical HUD 1 Map Filters NONE Filters NONE Steam 0 RUN: a9a3197c-d345-46fd-a880-52623b3c541b